[Event "*** Titled Tuesday Blitz"]
[Site "Chess.com"]
[Date "2019.08.06"]
[Round "4"]
[White "guillembaches"]
[Black "Spring199"]
[Result "1-0"]
[WhiteElo "2322"]
[BlackElo "2206"]
[TimeControl "180+2"]
[EndTime "13:51:56 PDT"]
[Termination "guillembaches won by resignation"]

1. e4 {[%clk 0:03:01.9]} 1... e5 {[%clk 0:03:00.4]} 2. Nf3 {[%clk 0:03:02.9]}
2... Nc6 {[%clk 0:03:00.6]} 3. Nc3 {[%clk 0:03:04.3]} 3... Nf6 {[%clk 0:03:01]}
4. d4 {[%clk 0:03:05.5]} 4... exd4 {[%clk 0:03:01.3]} 5. Nxd4 {[%clk 0:03:07.4]}
5... Bb4 {[%clk 0:03:02]} 6. Nxc6 {[%clk 0:03:07.9]} 6... bxc6 {[%clk
0:03:03.9]} 7. Bd3 {[%clk 0:03:08.9]} 7... O-O {[%clk 0:03:04.2]} 8. O-O {[%clk
0:03:08.6]} 8... d5 {[%clk 0:03:04.8]} 9. Bd2 {[%clk 0:03:09.6]} 9... Bxc3
{[%clk 0:02:39.4]} 10. Bxc3 {[%clk 0:03:09.4]} 10... Nxe4 {[%clk 0:02:39.2]} 11.
Bxe4 {[%clk 0:03:09.9]} 11... dxe4 {[%clk 0:02:39.8]} 12. Qe2 {[%clk 0:03:11.1]}
12... Re8 {[%clk 0:02:25.9]} 13. Rad1 {[%clk 0:03:08.4]} 13... Qg5 {[%clk
0:02:25.7]} 14. Qe3 {[%clk 0:03:04.7]} 14... Qxe3 {[%clk 0:02:18]} 15. fxe3
{[%clk 0:03:04.2]} 15... Bg4 {[%clk 0:02:16.6]} 16. Rd4 {[%clk 0:03:01.8]} 16...
c5 {[%clk 0:01:35.1]} 17. Rd5 {[%clk 0:02:55.9]} 17... Be6 {[%clk 0:00:39.6]}
18. Rxc5 {[%clk 0:02:55.7]} 18... Re7 {[%clk 0:00:39.2]} 19. Rf4 {[%clk
0:02:39.3]} 19... f5 {[%clk 0:00:36.7]} 20. a4 {[%clk 0:02:30.1]} 20... Rd8
{[%clk 0:00:36.9]} 21. Rf1 {[%clk 0:02:27.9]} 21... Red7 {[%clk 0:00:36.6]} 22.
Kf2 {[%clk 0:02:26.5]} 22... Kf7 {[%clk 0:00:36]} 23. h4 {[%clk 0:02:26.2]}
23... Re7 {[%clk 0:00:34.9]} 24. Ra5 {[%clk 0:02:16.5]} 24... c6 {[%clk
0:00:31.8]} 25. Kg3 {[%clk 0:02:10.4]} 25... Rd5 {[%clk 0:00:31.7]} 26. Ra6
{[%clk 0:02:06.1]} 26... c5 {[%clk 0:00:21.8]} 27. Kf4 {[%clk 0:01:58.9]} 27...
g6 {[%clk 0:00:21.6]} 28. Rc6 {[%clk 0:01:54.4]} 28... h6 {[%clk 0:00:21.7]} 29.
a5 {[%clk 0:01:50.9]} 29... Rb7 {[%clk 0:00:20.4]} 30. g4 {[%clk 0:01:43.4]}
30... Rbd7 {[%clk 0:00:22.3]} 31. h5 {[%clk 0:01:42.4]} 31... gxh5 {[%clk
0:00:22]} 32. gxh5 {[%clk 0:01:37.9]} 32... R7d6 {[%clk 0:00:22.1]} 33. Rc7+
{[%clk 0:01:35.4]} 33... Rd7 {[%clk 0:00:22.9]} 34. Rc8 {[%clk 0:01:35.7]} 34...
Rd1 {[%clk 0:00:19.5]} 35. Rxd1 {[%clk 0:01:27.2]} 35... Rxd1 {[%clk 0:00:20.9]}
36. Rc7+ {[%clk 0:01:28.2]} 36... Kf8 {[%clk 0:00:16.7]} 37. Rxa7 {[%clk
0:01:27.2]} 37... Rf1+ {[%clk 0:00:17.1]} 38. Ke5 {[%clk 0:01:28.1]} 38... Bc4
{[%clk 0:00:18.1]} 39. Kf6 {[%clk 0:01:25.6]} 39... Ke8 {[%clk 0:00:19]} 40. Be5
{[%clk 0:01:25.5]} 40... f4 {[%clk 0:00:19.6]} 41. Bxf4 {[%clk 0:01:24.9]} 41...
Rf2 {[%clk 0:00:20.9]} 42. b3 {[%clk 0:01:19.6]} 42... Bd5 {[%clk 0:00:18.4]}
43. c4 {[%clk 0:01:19.9]} 43... Bc6 {[%clk 0:00:15.9]} 44. Rc7 {[%clk
0:01:20.6]} 44... Bd7 {[%clk 0:00:15.3]} 45. a6 {[%clk 0:01:21.7]} 45... Ra2
{[%clk 0:00:16.2]} 46. a7 {[%clk 0:01:21.2]} 46... Kd8 {[%clk 0:00:17.4]} 47.
Rb7 {[%clk 0:01:16.1]} 47... Bc6 {[%clk 0:00:18.1]} 48. Rg7 {[%clk 0:01:10.7]}
48... Bd7 {[%clk 0:00:15.2]} 49. Rg8+ {[%clk 0:01:05.9]} 49... Be8 {[%clk
0:00:15.9]} 50. Bc7+ {[%clk 0:01:06.2]} 50... Kxc7 {[%clk 0:00:15.7]} 51. Rxe8
{[%clk 0:01:07.3]} 51... Rxa7 {[%clk 0:00:13.3]} 52. Re7+ {[%clk 0:01:08.1]}
52... Kb6 {[%clk 0:00:15.2]} 53. Rxa7 {[%clk 0:01:08.6]} 53... Kxa7 {[%clk
0:00:17.1]} 54. Ke7 {[%clk 0:01:08.2]} 54... Kb6 {[%clk 0:00:17.7]} 55. Kd6
{[%clk 0:01:09.2]} 55... Ka5 {[%clk 0:00:19.6]} 56. Kxc5 {[%clk 0:01:10]} 1-0

[Event "*** Titled Tuesday Blitz"]
[Site "Chess.com"]
[Date "2019.08.06"]
[Round "4"]
[White "eljanov"]
[Black "GMKrikor"]
[Result "1-0"]
[WhiteElo "2802"]
[BlackElo "2659"]
[TimeControl "180+2"]
[EndTime "13:52:00 PDT"]
[Termination "eljanov won by resignation"]

1. Nf3 {[%clk 0:03:00.8]} 1... c5 {[%clk 0:02:54.8]} 2. g3 {[%clk 0:03:01.4]}
2... Nc6 {[%clk 0:02:55.2]} 3. Bg2 {[%clk 0:03:01.6]} 3... g6 {[%clk 0:02:56.8]}
4. c4 {[%clk 0:03:01.3]} 4... Bg7 {[%clk 0:02:58]} 5. O-O {[%clk 0:03:03]} 5...
d6 {[%clk 0:02:59.6]} 6. Nc3 {[%clk 0:03:02.1]} 6... Bf5 {[%clk 0:02:50.8]} 7.
d3 {[%clk 0:02:35.9]} 7... Qd7 {[%clk 0:02:51.5]} 8. Re1 {[%clk 0:02:37]} 8...
Bh3 {[%clk 0:02:49.3]} 9. Bh1 {[%clk 0:02:37.7]} 9... Nf6 {[%clk 0:02:50.8]} 10.
Rb1 {[%clk 0:02:34.2]} 10... O-O {[%clk 0:02:51.2]} 11. a3 {[%clk 0:02:34.8]}
11... b6 {[%clk 0:02:46.9]} 12. b4 {[%clk 0:02:34.4]} 12... Rad8 {[%clk
0:02:44.6]} 13. Qa4 {[%clk 0:02:31.1]} 13... Rc8 {[%clk 0:02:25.6]} 14. Bd2
{[%clk 0:02:14.2]} 14... h6 {[%clk 0:02:21.1]} 15. b5 {[%clk 0:01:17.5]} 15...
Nd4 {[%clk 0:02:14.2]} 16. Nxd4 {[%clk 0:01:15.7]} 16... cxd4 {[%clk 0:02:16.1]}
17. Nd5 {[%clk 0:01:13.2]} 17... Nxd5 {[%clk 0:02:11]} 18. Bxd5 {[%clk
0:01:13.6]} 18... e5 {[%clk 0:01:53.7]} 19. Qa6 {[%clk 0:01:07.6]} 19... Kh7
{[%clk 0:01:44.4]} 20. a4 {[%clk 0:01:08.3]} 20... f5 {[%clk 0:01:45.2]} 21. a5
{[%clk 0:01:09.2]} 21... Rb8 {[%clk 0:01:46.3]} 22. Ra1 {[%clk 0:01:06.6]} 22...
Qe7 {[%clk 0:01:29.2]} 23. axb6 {[%clk 0:01:04.2]} 23... axb6 {[%clk 0:01:31.1]}
24. Qa7 {[%clk 0:01:03.9]} 24... Qf6 {[%clk 0:01:31]} 25. Qc7 {[%clk 0:00:46.7]}
25... f4 {[%clk 0:01:26.7]} 26. gxf4 {[%clk 0:00:44.2]} 26... exf4 {[%clk
0:01:07.9]} 27. Ra7 {[%clk 0:00:40.6]} 27... Rbe8 {[%clk 0:00:22.5]} 28. Bxf4
{[%clk 0:00:38.3]} 28... g5 {[%clk 0:00:10.3]} 29. Bg3 {[%clk 0:00:36.9]} 29...
Be6 {[%clk 0:00:09.9]} 30. Qxd6 {[%clk 0:00:33.2]} 30... h5 {[%clk 0:00:09.3]}
31. Qe5 {[%clk 0:00:17.7]} 31... Bxd5 {[%clk 0:00:06.3]} 32. Qxf6 {[%clk
0:00:16.9]} 32... Rxf6 {[%clk 0:00:08]} 33. cxd5 {[%clk 0:00:17.3]} 33... Rf5
{[%clk 0:00:04]} 34. d6 {[%clk 0:00:16.4]} 34... h4 {[%clk 0:00:05.6]} 35. d7
{[%clk 0:00:16.2]} 35... Rd8 {[%clk 0:00:07.3]} 36. Bc7 {[%clk 0:00:14]} 36...
Rxd7 {[%clk 0:00:08.6]} 37. Rb1 {[%clk 0:00:11.3]} 37... Rdd5 {[%clk 0:00:03.7]}
38. Bxb6 {[%clk 0:00:10.5]} 38... Kg6 {[%clk 0:00:05.1]} 39. Ra6 {[%clk
0:00:09.8]} 39... Kh5 {[%clk 0:00:04.4]} 40. h3 {[%clk 0:00:10.1]} 40... Rxb5
{[%clk 0:00:05.1]} 41. Rxb5 {[%clk 0:00:11.2]} 41... Rxb5 {[%clk 0:00:07]} 42.
Kg2 {[%clk 0:00:11.7]} 42... Be5 {[%clk 0:00:03.3]} 43. Ra5 {[%clk 0:00:11.2]}
43... Rxb6 {[%clk 0:00:03.4]} 44. Rxe5 {[%clk 0:00:12]} 44... Rb2 {[%clk
0:00:03.7]} 45. Re4 {[%clk 0:00:12.8]} 45... Ra2 {[%clk 0:00:04.5]} 46. Kf3
{[%clk 0:00:14]} 46... Ra4 {[%clk 0:00:05.2]} 47. e3 {[%clk 0:00:14.8]} 47...
Ra1 {[%clk 0:00:04.4]} 48. Rxd4 {[%clk 0:00:15.9]} 48... Rh1 {[%clk 0:00:05.6]}
49. Kg2 {[%clk 0:00:17]} 49... Rd1 {[%clk 0:00:07.3]} 50. e4 {[%clk 0:00:18]}
50... g4 {[%clk 0:00:06.7]} 51. Rd5+ {[%clk 0:00:18.6]} 1-0

[Event "*** Titled Tuesday Blitz"]
[Site "Chess.com"]
[Date "2019.08.06"]
[Round "4"]
[White "AbasovN"]
[Black "Airquake"]
[Result "1-0"]
[WhiteElo "2890"]
[BlackElo "2627"]
[TimeControl "180+2"]
[EndTime "13:52:11 PDT"]
[Termination "AbasovN won on time"]

1. e4 {[%clk 0:03:01.9]} 1... c5 {[%clk 0:03:01]} 2. Nf3 {[%clk 0:03:02.5]} 2...
d6 {[%clk 0:03:02.5]} 3. Nc3 {[%clk 0:03:02.3]} 3... Nf6 {[%clk 0:03:00.9]} 4.
e5 {[%clk 0:03:03.8]} 4... dxe5 {[%clk 0:03:02.1]} 5. Nxe5 {[%clk 0:03:05]} 5...
e6 {[%clk 0:03:03.8]} 6. Bb5+ {[%clk 0:03:00.4]} 6... Nbd7 {[%clk 0:03:04.9]} 7.
d4 {[%clk 0:03:01]} 7... a6 {[%clk 0:02:59.6]} 8. Bxd7+ {[%clk 0:02:59.5]} 8...
Nxd7 {[%clk 0:03:00.9]} 9. Qh5 {[%clk 0:02:58.8]} 9... g6 {[%clk 0:02:54]} 10.
Qf3 {[%clk 0:02:59.4]} 10... Nxe5 {[%clk 0:02:52.2]} 11. dxe5 {[%clk 0:03:01.3]}
11... Bg7 {[%clk 0:02:53.7]} 12. Bf4 {[%clk 0:02:43]} 12... g5 {[%clk
0:02:48.1]} 13. Bg3 {[%clk 0:02:41]} 13... h5 {[%clk 0:02:47.2]} 14. Ne4 {[%clk
0:02:35.6]} 14... g4 {[%clk 0:02:03.8]} 15. Qe3 {[%clk 0:02:13.9]} 15... Qd4
{[%clk 0:01:30.9]} 16. Nd6+ {[%clk 0:02:13.5]} 16... Kf8 {[%clk 0:01:29.4]} 17.
Qg5 {[%clk 0:02:14.7]} 17... Bd7 {[%clk 0:01:23.4]} 18. O-O {[%clk 0:02:07.9]}
18... f6 {[%clk 0:01:05.6]} 19. Qg6 {[%clk 0:02:06]} 19... Be8 {[%clk
0:01:06.8]} 20. Nxe8 {[%clk 0:02:07.2]} 20... Rxe8 {[%clk 0:01:08.7]} 21. Rad1
{[%clk 0:02:07.6]} 21... Rh6 {[%clk 0:01:10.2]} 22. Qxe8+ {[%clk 0:01:04.5]}
22... Kxe8 {[%clk 0:01:10]} 23. Rxd4 {[%clk 0:01:06.4]} 23... cxd4 {[%clk
0:01:11.8]} 24. Re1 {[%clk 0:01:07.7]} 24... fxe5 {[%clk 0:01:10.1]} 25. Bxe5
{[%clk 0:01:09.6]} 25... Bxe5 {[%clk 0:01:10.1]} 26. Rxe5 {[%clk 0:01:11.5]}
26... Kd7 {[%clk 0:01:11.8]} 27. Re4 {[%clk 0:01:10.6]} 27... e5 {[%clk
0:01:00.3]} 28. Rxe5 {[%clk 0:01:10.6]} 28... Kd6 {[%clk 0:01:02.2]} 29. Rg5
{[%clk 0:01:05.1]} 29... Rh8 {[%clk 0:01:00.3]} 30. Kf1 {[%clk 0:00:42.8]} 30...
Rc8 {[%clk 0:01:00.5]} 31. c3 {[%clk 0:00:44.1]} 31... dxc3 {[%clk 0:01:01.8]}
32. bxc3 {[%clk 0:00:46]} 32... Rxc3 {[%clk 0:01:03.4]} 33. Rxh5 {[%clk
0:00:47.5]} 33... Rc1+ {[%clk 0:00:53.9]} 34. Ke2 {[%clk 0:00:48.1]} 34... Rc2+
{[%clk 0:00:55.8]} 35. Ke3 {[%clk 0:00:49.5]} 35... Rxa2 {[%clk 0:00:57.7]} 36.
Rg5 {[%clk 0:00:40.7]} 36... b5 {[%clk 0:00:50.5]} 37. Rxg4 {[%clk 0:00:40.7]}
37... a5 {[%clk 0:00:51.9]} 38. h4 {[%clk 0:00:32.8]} 38... b4 {[%clk
0:00:52.5]} 39. h5 {[%clk 0:00:24.6]} 39... Rc2 {[%clk 0:00:39.4]} 40. h6 {[%clk
0:00:24.4]} 40... b3 {[%clk 0:00:39.9]} 41. h7 {[%clk 0:00:22.7]} 41... Rc8
{[%clk 0:00:18.8]} 42. Rg8 {[%clk 0:00:22.9]} 42... b2 {[%clk 0:00:09.1]} 43.
h8=Q {[%clk 0:00:22.5]} 43... b1=Q {[%clk 0:00:11]} 44. Qd4+ {[%clk 0:00:17.2]}
44... Ke6 {[%clk 0:00:11.7]} 45. Qg4+ {[%clk 0:00:17.7]} 45... Kf7 {[%clk
0:00:08.2]} 46. Qg7+ {[%clk 0:00:16.6]} 46... Ke6 {[%clk 0:00:08.8]} 47. Qh6+
{[%clk 0:00:18]} 47... Kd5 {[%clk 0:00:07.3]} 48. Qh5+ {[%clk 0:00:16.8]} 48...
Kd6 {[%clk 0:00:03.2]} 49. Rg6+ {[%clk 0:00:13.7]} 49... Kc7 {[%clk 0:00:04.3]}
50. Qc5+ {[%clk 0:00:13.9]} 50... Kb7 {[%clk 0:00:03.7]} 51. Rg7+ {[%clk
0:00:12.7]} 1-0

[Event "*** Titled Tuesday Blitz"]
[Site "Chess.com"]
[Date "2019.08.06"]
[Round "4"]
[White "adriangschnitzer"]
[Black "DiogenesSinopeus"]
[Result "1-0"]
[WhiteElo "2565"]
[BlackElo "2406"]
[TimeControl "180+2"]
[EndTime "13:52:12 PDT"]
[Termination "adriangschnitzer won by resignation"]

1. d4 {[%clk 0:03:01.9]} 1... Nf6 {[%clk 0:03:00.8]} 2. g3 {[%clk 0:03:02.7]}
2... d5 {[%clk 0:03:00.9]} 3. Bg2 {[%clk 0:03:03.6]} 3... c6 {[%clk 0:03:00.4]}
4. Nf3 {[%clk 0:03:04.6]} 4... Bf5 {[%clk 0:02:59.3]} 5. c4 {[%clk 0:03:05.5]}
5... Nbd7 {[%clk 0:02:57.6]} 6. Nc3 {[%clk 0:03:05.5]} 6... e6 {[%clk
0:02:54.6]} 7. Nh4 {[%clk 0:03:05.1]} 7... Bg4 {[%clk 0:02:50.6]} 8. h3 {[%clk
0:03:05.2]} 8... Bh5 {[%clk 0:02:51]} 9. g4 {[%clk 0:03:04.4]} 9... Ne4 {[%clk
0:02:45.7]} 10. Nxe4 {[%clk 0:02:51.2]} 10... dxe4 {[%clk 0:02:45]} 11. gxh5
{[%clk 0:02:41.8]} 11... Qxh4 {[%clk 0:02:45.5]} 12. Qb3 {[%clk 0:02:35.3]}
12... Rb8 {[%clk 0:02:27.6]} 13. Be3 {[%clk 0:02:18]} 13... Be7 {[%clk
0:02:20.7]} 14. O-O-O {[%clk 0:02:14.9]} 14... Bg5 {[%clk 0:02:21.7]} 15. Kb1
{[%clk 0:02:14.3]} 15... Bxe3 {[%clk 0:02:16.8]} 16. Qxe3 {[%clk 0:02:13.7]}
16... Nf6 {[%clk 0:02:14.7]} 17. Rdg1 {[%clk 0:02:09.9]} 17... O-O {[%clk
0:02:02.5]} 18. f3 {[%clk 0:01:54.5]} 18... Nxh5 {[%clk 0:01:35.7]} 19. fxe4
{[%clk 0:01:48.9]} 19... Qf4 {[%clk 0:01:30.7]} 20. Qxf4 {[%clk 0:01:40.1]}
20... Nxf4 {[%clk 0:01:32.6]} 21. Bf3 {[%clk 0:01:41.6]} 21... e5 {[%clk
0:01:20.4]} 22. d5 {[%clk 0:01:30.6]} 22... Ng6 {[%clk 0:00:53.3]} 23. h4 {[%clk
0:01:28.7]} 23... Rfd8 {[%clk 0:00:46.4]} 24. Bg4 {[%clk 0:01:23.8]} 24... Ne7
{[%clk 0:00:37.6]} 25. Rh2 {[%clk 0:01:16.2]} 25... c5 {[%clk 0:00:23.6]} 26. a4
{[%clk 0:01:12]} 26... b6 {[%clk 0:00:21.5]} 27. Rf2 {[%clk 0:01:01.8]} 27...
Nc8 {[%clk 0:00:20.2]} 28. Bxc8 {[%clk 0:01:00.3]} 28... Rbxc8 {[%clk
0:00:22.1]} 29. Rf5 {[%clk 0:00:57.1]} 29... Re8 {[%clk 0:00:22.1]} 30. Rgg5
{[%clk 0:00:49.8]} 30... h6 {[%clk 0:00:23.4]} 31. Rg3 {[%clk 0:00:46.4]} 31...
Rcd8 {[%clk 0:00:23.1]} 32. Kc2 {[%clk 0:00:44.4]} 32... Rd6 {[%clk 0:00:21.6]}
33. h5 {[%clk 0:00:42.6]} 33... Kf8 {[%clk 0:00:22]} 34. Rgf3 {[%clk 0:00:41.4]}
34... Re7 {[%clk 0:00:21.4]} 35. Kb3 {[%clk 0:00:41.2]} 35... Ke8 {[%clk
0:00:21.6]} 36. Ka3 {[%clk 0:00:42.3]} 36... f6 {[%clk 0:00:15.8]} 37. Rb3
{[%clk 0:00:41.5]} 37... Kf7 {[%clk 0:00:11.7]} 38. Rff3 {[%clk 0:00:42.2]}
38... a5 {[%clk 0:00:10.8]} 39. Rb5 {[%clk 0:00:40.8]} 39... Ra7 {[%clk
0:00:09.7]} 40. Kb3 {[%clk 0:00:38.4]} 40... Ra8 {[%clk 0:00:06.9]} 41. Rg3
{[%clk 0:00:39.7]} 41... Rg8 {[%clk 0:00:05.6]} 42. Kc2 {[%clk 0:00:40.9]} 42...
g5 {[%clk 0:00:05.8]} 43. Kd3 {[%clk 0:00:38.7]} 43... Ke7 {[%clk 0:00:06]} 44.
Ke3 {[%clk 0:00:39.9]} 44... Rf8 {[%clk 0:00:06.7]} 45. Rf3 {[%clk 0:00:39.2]}
45... f5 {[%clk 0:00:06.8]} 46. exf5 {[%clk 0:00:33.8]} 46... Kf6 {[%clk
0:00:08.3]} 47. Ke4 {[%clk 0:00:34.2]} 47... Re8 {[%clk 0:00:09.1]} 48. Rfb3
{[%clk 0:00:33.4]} 48... Rb8 {[%clk 0:00:03.6]} 49. Rxc5 {[%clk 0:00:34.1]}
49... g4 {[%clk 0:00:05.1]} 50. Rc6 {[%clk 0:00:30.5]} 50... Rxc6 {[%clk
0:00:06.4]} 51. dxc6 {[%clk 0:00:32.4]} 51... Kg5 {[%clk 0:00:06.4]} 52. Kxe5
{[%clk 0:00:32.1]} 52... Kh4 {[%clk 0:00:06]} 53. Kd6 {[%clk 0:00:33.2]} 53...
g3 {[%clk 0:00:06.9]} 54. Rxg3 {[%clk 0:00:33.4]} 54... Kxg3 {[%clk 0:00:07.7]}
55. c7 {[%clk 0:00:34.7]} 55... Rf8 {[%clk 0:00:03.6]} 56. Ke7 {[%clk
0:00:35.2]} 56... Rh8 {[%clk 0:00:04.7]} 57. f6 {[%clk 0:00:35.9]} 1-0

[Event "*** Titled Tuesday Blitz"]
[Site "Chess.com"]
[Date "2019.08.06"]
[Round "4"]
[White "Annawel"]
[Black "HomayoonTofighi"]
[Result "0-1"]
[WhiteElo "2988"]
[BlackElo "2841"]
[TimeControl "180+2"]
[EndTime "13:52:16 PDT"]
[Termination "HomayoonTofighi won by resignation"]

1. e4 {[%clk 0:03:01.2]} 1... d5 {[%clk 0:02:56.1]} 2. exd5 {[%clk 0:03:00.2]}
2... Qxd5 {[%clk 0:02:58]} 3. Nc3 {[%clk 0:03:01.8]} 3... Qa5 {[%clk 0:02:59.3]}
4. d4 {[%clk 0:03:02.9]} 4... Nf6 {[%clk 0:03:00.2]} 5. Bc4 {[%clk 0:03:02]}
5... Bg4 {[%clk 0:03:01]} 6. f3 {[%clk 0:03:03.4]} 6... Bf5 {[%clk 0:03:01.8]}
7. Ne2 {[%clk 0:03:01.5]} 7... Nc6 {[%clk 0:02:50.5]} 8. Bd2 {[%clk 0:02:46.9]}
8... O-O-O {[%clk 0:02:43.7]} 9. Nd5 {[%clk 0:02:06.5]} 9... Qa4 {[%clk
0:02:42.9]} 10. Bb3 {[%clk 0:02:07.8]} 10... Qa6 {[%clk 0:02:43.6]} 11. c4
{[%clk 0:01:59.2]} 11... e6 {[%clk 0:02:40.7]} 12. Nxf6 {[%clk 0:01:58.8]} 12...
gxf6 {[%clk 0:02:42.6]} 13. Bc3 {[%clk 0:02:00.2]} 13... Nxd4 {[%clk 0:02:34.8]}
14. Nxd4 {[%clk 0:01:59.5]} 14... Bc5 {[%clk 0:02:32.5]} 15. Qd2 {[%clk
0:01:44.8]} 15... Bxd4 {[%clk 0:02:23.8]} 16. Bxd4 {[%clk 0:01:46.1]} 16... e5
{[%clk 0:02:23.5]} 17. O-O {[%clk 0:01:33.1]} 17... Rxd4 {[%clk 0:02:22.7]} 18.
Qh6 {[%clk 0:01:34.1]} 18... Bg6 {[%clk 0:02:19.7]} 19. Rf2 {[%clk 0:01:33.2]}
19... Rhd8 {[%clk 0:02:19.3]} 20. h4 {[%clk 0:01:33.9]} 20... Qb6 {[%clk
0:02:17.1]} 21. h5 {[%clk 0:01:32.3]} 21... Rd2 {[%clk 0:02:15]} 22. Rf1 {[%clk
0:01:33.2]} 22... Bf5 {[%clk 0:02:06.2]} 23. g4 {[%clk 0:01:33]} 23... Rxf2
{[%clk 0:01:57.5]} 24. Rxf2 {[%clk 0:01:33.4]} 24... Bd3 {[%clk 0:01:59.4]} 25.
c5 {[%clk 0:01:24.7]} 25... Qxc5 {[%clk 0:01:56.5]} 26. Qxf6 {[%clk 0:01:26]}
26... a5 {[%clk 0:01:46.3]} 27. Bxf7 {[%clk 0:01:25.4]} 27... Rf8 {[%clk
0:01:42.3]} 28. g5 {[%clk 0:01:18.4]} 28... Bc4 {[%clk 0:01:33.1]} 29. g6 {[%clk
0:00:57.6]} 29... hxg6 {[%clk 0:01:33]} 30. hxg6 {[%clk 0:00:59.5]} 30... Bxf7
{[%clk 0:01:34.1]} 31. gxf7 {[%clk 0:00:46.1]} 31... Qd5 {[%clk 0:01:35.2]} 32.
Rg2 {[%clk 0:00:30.1]} 32... Qxf7 {[%clk 0:01:34.4]} 33. Qxf7 {[%clk 0:00:30.9]}
33... Rxf7 {[%clk 0:01:36.3]} 34. Rg3 {[%clk 0:00:32.5]} 34... Kd7 {[%clk
0:01:31.5]} 35. Kg2 {[%clk 0:00:33.4]} 35... Kd6 {[%clk 0:01:29.3]} 36. Rg4
{[%clk 0:00:33.6]} 36... Kd5 {[%clk 0:01:26.8]} 37. Kf2 {[%clk 0:00:30.5]} 37...
Rf4 {[%clk 0:01:25]} 38. Rg7 {[%clk 0:00:31.5]} 38... Rc4 {[%clk 0:01:25.3]} 39.
Rd7+ {[%clk 0:00:32.8]} 39... Ke6 {[%clk 0:01:24.6]} 40. Rd2 {[%clk 0:00:33.7]}
40... b5 {[%clk 0:01:24]} 41. Ke3 {[%clk 0:00:34.7]} 41... a4 {[%clk 0:01:23.7]}
42. a3 {[%clk 0:00:34.6]} 42... c5 {[%clk 0:01:23.3]} 43. Rh2 {[%clk 0:00:35.7]}
43... Kd5 {[%clk 0:01:20.3]} 44. Kd3 {[%clk 0:00:22]} 44... Rf4 {[%clk
0:01:19.3]} 45. Ke3 {[%clk 0:00:21.1]} 45... b4 {[%clk 0:01:20.2]} 46. Rc2
{[%clk 0:00:15.1]} 46... Rh4 {[%clk 0:01:11.2]} 47. Rd2+ {[%clk 0:00:14.7]}
47... Kc4 {[%clk 0:01:11.4]} 48. Rc2+ {[%clk 0:00:15.8]} 48... Kd5 {[%clk
0:01:10.5]} 49. Rd2+ {[%clk 0:00:17.1]} 49... Kc4 {[%clk 0:01:08.6]} 50. Rc2+
{[%clk 0:00:18.5]} 50... Kb3 {[%clk 0:01:09.6]} 51. Rxc5 {[%clk 0:00:19.8]}
51... Kxb2 {[%clk 0:01:08.9]} 52. axb4 {[%clk 0:00:21.3]} 52... Rxb4 {[%clk
0:01:10.8]} 53. Rxe5 {[%clk 0:00:22.8]} 53... a3 {[%clk 0:01:08.4]} 54. Rh5
{[%clk 0:00:20.2]} 54... a2 {[%clk 0:01:08.1]} 55. Rh2+ {[%clk 0:00:20.4]} 55...
Ka3 {[%clk 0:01:08.6]} 56. Rh1 {[%clk 0:00:20.6]} 56... Rb1 {[%clk 0:01:09.4]}
57. Rh8 {[%clk 0:00:22.2]} 57... a1=Q {[%clk 0:01:06]} 58. Ra8+ {[%clk
0:00:23.4]} 58... Kb4 {[%clk 0:01:06.4]} 59. Rxa1 {[%clk 0:00:25.3]} 59... Rxa1
{[%clk 0:01:08.3]} 60. Kd4 {[%clk 0:00:27.2]} 60... Rf1 {[%clk 0:01:06.6]} 61.
Ke4 {[%clk 0:00:28.5]} 61... Kc5 {[%clk 0:01:08.5]} 62. f4 {[%clk 0:00:30.4]}
62... Kd6 {[%clk 0:01:10.4]} 0-1